Workbook

Sheet Cover page
G17: =Name_Model -> Company Name SHS Model
K27: April 2023

Sheet Dashboard
C1: =Name_Model -> Company Name SHS Model
C3: Dashboard
A5: ● | C5: Model Information
C7: Company name | D7: =Names!E9 -> Company Name | I7: Model checks
C8: Model name | D8: =CONCATENATE(Names!E9," ",Name_Model) -> Company Name Company Name SHS Model | I8: Model balances | K8: =Model!P74 -> 0
C9: Country | D9: Nigeria | I9: Cash balance always positive | K9: =Model!O103 -> 0
I10: Inputs correct | K10: =Inputs!E160 -> 0
I11: Operating Scenario | K11: =Inputs!E25 -> Upside
A14: ● | C14: Key Outputs | N14: Graphs
C17: Financial Statements
C18: Income statement key outputs | G18: =Start_Year -> 2020 | H18: =G18+1 -> 2021 | I18: =H18+1 -> 2022 | J18: 2023 | K18: 2024 | L18: 2025
C19: Revenue | D19: NGN | G19: =Model!I16 -> 67800000 | H19: =Model!J16 -> 101700000 | I19: =Model!K16 -> 147465000 | J19: =Model!L16 -> 184331250 | K19: =Model!M16 -> 230414062.5 | L19: =Model!N16 -> 264976171.9
C20: Operating Expenses (inc VAT) | D20: NGN | G20: =Model!I25+Model!I27 -> -8494600 | H20: =Model!J25+Model!J27 -> -12988380 | I20: =Model!K25+Model!K27 -> -19212697.12 | J20: =Model!L25+Model!L27 -> -24520329.24 | K20: =Model!M25+Model!M27 -> -31313227.29 | L20: =Model!N25+Model!N27 -> -36813819.55
C21: EBITDA | D21: NGN | G21: =Model!I29 -> 58990400 | H21: =Model!J29 -> 88239120 | I21: =Model!K29 -> 127567177.9 | J21: =Model!L29 -> 158954514.5 | K21: =Model!M29 -> 198030327.4 | L21: =Model!N29 -> 226931268.3
C22: Net Income | D22: NGN | G22: =Model!I42 -> 40106717.33 | H22: =Model!J42 -> 60008853.07 | I22: =Model!K42 -> 86745595.28 | J22: =Model!L42 -> 108088992.8 | K22: =Model!M42 -> 134660553.2 | L22: =Model!N42 -> 154313200
C23: Profit margin | D23: % | E23: =SUM(G22:K22)/SUM(G19:K19) -> 0.5871322357 | G23: =G22/G19 -> 0.5915445034 | H23: =H22/H19 -> 0.5900575523 | I23: 0.5882453143 | J23: 0.5863845265 | K23: 0.584428536 | L23: =L22/L19 -> 0.5823663272
C25: Balance sheet key outputs
C26: Cash balance | D26: NGN | G26: =Model!I48 -> 55388984 | H26: =Model!J48 -> 103747143.7 | I26: =Model!K48 -> 175021906.7 | J26: =Model!L48 -> 270650981.6 | K26: =Model!M48 -> 389736597.8 | L26: =Model!N48 -> 532368610.4
C27: Debt | D27: NGN | G27: =Model!I64 -> 512666.6667 | H27: =Model!J64 -> 476833.3333 | I27: =Model!K64 -> 686125 | J27: =Model!L64 -> 857406.25 | K27: =Model!M64 -> 1071507.812 | L27: =Model!N64 -> 1232083.984
C28: Equity | D28: NGN | G28: =Model!I70 -> 78108217.33 | H28: =Model!J70 -> 138117070.4 | I28: =Model!K70 -> 224862665.7 | J28: =Model!L70 -> 332951658.4 | K28: =Model!M70 -> 467612211.7 | L28: =Model!N70 -> 621925411.7
C29: Debt:equity ratio | D29: multiple | G29: =G27/G28 -> 0.006563543301 | H29: =H27/H28 -> 0.003452385226 | I29: =I27/I28 -> 0.003051306885 | J29: =J27/J28 -> 0.00257516738 | K29: =K27/K28 -> 0.002291445317 | L29: =L27/L28 -> 0.001981079984
C32: Equity IRR | AF32: DO NOT DELETE
C33: IRR | D33: % | E33: =Model!F195 ->  | AF33: =Model!F195 ->  | AG33: Upside | AH33: Downside | AI33: Base

Sheet Inputs
B1: Input Sheet | C1: =Name_Model -> Company Name SHS Model
C3: Inputs
A5: ● | C5: Timing
C6: Start
C7: Model Start Date | D7: Date | E7: 2020-01-01
C8: Model Start Year | D8: Date | E8: =YEAR(E7) -> 2020
A23: ● | C23: Operating Scenario
C25: Operating Scenario | D25: Name | E25: Upside
A27: ● | C27: COGS assumptions
C29: Product 1
C30: System name | D30: Name
C31: System cost | D31: NGN | E31: 100
C32: Shipping cost | D32: NGN | E32: 100
C33: Installation cost | D33: % module cost | E33: 0.05
C34: Total COGS | D34: NGN | E34: =SUM(E31:E32)*E33+(E31+E32) -> 210
C36: Product 2
C37: System name | D37: Name
C38: System cost | D38: NGN | E38: 100
C39: Shipping cost | D39: NGN | E39: 100
C40: Installation cost | D40: % module cost | E40: 0.05
C41: Total COGS | D41: NGN | E41: =SUM(E38:E39)*E40+(E38+E39) -> 210
A43: ● | C43: Sales and pricing
C45: Sales assumptions
C46: Product 1
C47: Initial sales (2019) | D47: # | E47: 500 | G47: =$E$8 -> 2020 | H47: =G47+1 -> 2021 | I47: =H47+1 -> 2022 | J47: 2023 | K47: 2024 | L47: 2025
C48: Annual sales growth | D48: # | H48: =H207 -> 0.5 | I48: =I207 -> 0.45 | J48: 0.25 | K48: 0.25 | L48: 0.15
C49: Total sales | E49: =SUM(G49:Q49) -> 7350.195312 | G49: =E47 -> 500 | H49: =G49*(1+H48) -> 750 | I49: =H49*(1+I48) -> 1087.5 | J49: 1359.375 | K49: 1699.21875 | L49: 1954.101562
C51: Pricing assumptions
C52: Product 1
C53: Total PAYG | D53: NGN | E53: =E54 + (E55*E56) -> 50000
C54: Down Payment | D54: NGN | E54: 2000
C55: Monthly fees | D55: NGN | E55: 2000
C56: Tenure | D56: Months | E56: 24
C58: Default rate | D58: % | E58: 0.1
C60: Sales assumptions
C61: Product 2
C62: Initial sales (2019) | D62: # | E62: 1000 | G62: =$E$8 -> 2020 | H62: =G62+1 -> 2021 | I62: =H62+1 -> 2022 | J62: 2023 | K62: 2024 | L62: 2025
C63: Annual sales growth | D63: # | H63: =H208 -> 0.5 | I63: =I208 -> 0.45 | J63: 0.25 | K63: 0.25 | L63: 0.15
C64: Total sales | E64: =SUM(G64:Q64) -> 14700.39062 | G64: =E62 -> 1000 | H64: =G64*(1+H63) -> 1500 | I64: =H64*(1+I63) -> 2175 | J64: =I64*(1+J63) -> 2718.75 | K64: =J64*(1+K63) -> 3398.4375 | L64: =K64*(1+L63) -> 3908.203125
C66: Pricing assumptions
C67: Product 2
C68: Total PAYG | D68: NGN | E68: =E69 + (E70*E71) -> 106000
C69: Down Payment | D69: NGN | E69: 10000
C70: Monthly fees | D70: NGN | E70: 4000
C71: Tenure | D71: Months | E71: 24
C73: Default rate | D73: % | E73: 0.1
A75: ● | C75: Operational expenses
C77: Coporate overhead | G77: =G62 -> 2020
C78: Employees and salaries | E78: Per employee | G78: =Start_Year -> 2020 | H78: =G78+1 -> 2021 | I78: =H78+1 -> 2022 | J78: 2023 | K78: 2024 | L78: =K78+1 -> 2025
C79: Artisan (Technician, Electrician) | D79: NGN annual | E79: 1000 | G79: 1 | H79: 1 | I79: 1 | J79: 1 | K79: 1 | L79: 1
C80: Technical Manager | D80: NGN annual | E80: 1000 | G80: 1 | H80: 1 | I80: 1 | J80: 1 | K80: 1 | L80: 1
C81: HR and Admin Manager | D81: NGN annual | E81: 1000 | G81: 1 | H81: 1 | I81: 1 | J81: 1 | K81: 1 | L81: 1
C82: Marketing & PR Executive | D82: NGN annual | E82: 1000 | G82: 1 | H82: 1 | I82: 1 | J82: 1 | K82: 1 | L82: 1
C83: Logistics and Stock Control | D83: NGN annual | E83: 1000 | G83: 1 | H83: 1 | I83: 1 | J83: 1 | K83: 1 | L83: 1
C84: IT Support | D84: NGN annual | E84: 1000 | G84: 1 | H84: 1 | I84: 1 | J84: 1 | K84: 1 | L84: 1
C85: Employee benefits & payroll tax | D85: % payroll | E85: 0.1
C87: Total corporate salaries and benefits | D87: NGN annual | G87: =SUMPRODUCT($E$79:$E$84,G79:G84) + SUMPRODUCT($E$79:$E$84,G79:G84)*$E$85 -> 6600 | H87: 6600 | I87: 6600 | J87: 6600 | K87: 6600 | L87: 6600
C89: Office
C90: Head office rent | D90: NGN annual | E90: 1000
C91: Warehouse rent | D91: NGN annual | E91: 1000
C92: Maintenance | D92: NGN annual | E92: 1000
C93: Technology & communications | D93: NGN annual | E93: 1000
C95: Total office expenses | D95: NGN annual | E95: =SUM(E90:E93) -> 4000
C97: Administration | G97: Annual increase
C98: Insurance | D98: NGN annual | E98: 1000
C99: Legal | D99: NGN annual | E99: 1000
C100: Travel expenses | D100: NGN annual | E100: 1000
C102: Total administration expenses | D102: NGN annual | E102: =SUM(E98:E100) -> 3000
C104: Direct sales and service costs | G104: =$E$8 -> 2020 | H104: =G104+1 -> 2021 | I104: =H104+1 -> 2022 | J104: 2023 | K104: 2024 | L104: 2025
C105: New service centers | D105: # | G105: 1 | H105: 1 | I105: 1 | J105: 1 | K105: 1 | L105: 1
C106: Active service centers | D106: # | G106: =SUM(G105) -> 1 | H106: =SUM($G$105:H105) -> 2 | I106: =SUM($G$105:I105) -> 3 | J106: =SUM($G$105:J105) -> 4 | K106: =SUM($G$105:K105) -> 5 | L106: =SUM($G$105:L105) -> 6
C108: Service center rent | D108: NGN annual | E108: 1000
C110: Marketing (% revenue) | D110: % | E110: 0.05
C112: Salaries (per service center) | E112: Salary | G112: Employees | H112: Annual cost
C113: Sales Agent | D113: NGN annual | E113: 1000 | G113: 1 | H113: =E113*G113 -> 1000
C114: Technician | D114: NGN annual | E114: 1000 | G114: 1 | H114: =E114*G114 -> 1000
C115: Local labour (periodic) | D115: NGN annual | E115: 1000 | G115: 1 | H115: 1000
C116: Security | D116: NGN annual | E116: 1000 | G116: 1 | H116: 1000
C117: Driver | D117: NGN annual | E117: 1000 | G117: 1 | H117: 1000
C118: Total salaries per service center | D118: NGN annual | H118: =SUM(H113:H117) -> 5000
C120: Total direct and service costs | D120: NGN annual | G120: =(G106*$E$108) +($E$110*Model!I16)+Inputs!$H$118 -> 3396000 | H120: =(H106*$E$108) +($E$110*Model!J16)+Inputs!$H$118 -> 5092000 | I120: =(I106*$E$108) +($E$110*Model!K16)+Inputs!$H$118 -> 7381250 | J120: =(J106*$E$108) +($E$110*Model!L16)+Inputs!$H$118 -> 9225562.5 | K120: =(K106*$E$108) +($E$110*Model!M16)+Inputs!$H$118 -> 11530703.12 | L120: =(L106*$E$108) +($E$110*Model!N16)+Inputs!$H$118 -> 13259808.59
A123: ● | C123: Working capital
C125: Days in period | D125: # | E125: 30
C127: Receivable days | D127: # | E127: 10
C128: Payable days | D128: # | E128: 30
C129: Inventory days | D129: # | E129: 60
A131: ● | C131: Depreciation and Tax
C133: Depreciation of corporate PP&E
C134: Existing PP&E
C135: Beginning PP&E | D135: NGN | E135: =E149 -> 1000 | G135: SL Deprec
C136: Depreciation rate | D136: years | E136: 10 | G136: =1/E136 -> 0.1
C138: Additions to PP&E | G138: =$E$8 -> 2020 | H138: =G138+1 -> 2021 | I138: =H138+1 -> 2022 | J138: =I138+1 -> 2023 | K138: =J138+1 -> 2024 | L138: =K138+1 -> 2025
C139: Equipment | D139: NGN | E139: 500 | G139: =E139 -> 500
C141: Tax
C142: VAT on sales | D142: % | E142: 0.075
C143: Income tax | D143: % PBT | E143: 0.32
A145: ● | C145: Balance sheet (2019)
C147: Assets
C148: Cash & Cash equivalent | D148: NGN | E148: 1000
C149: Non-current assets | D149: NGN | E149: 1000
C150: Trade & other receivables | D150: NGN | E150: 500
C152: Liabilities
C153: Long term loans | D153: NGN | E153: 500
C154: Trade & other payables | D154: NGN | E154: 500
C156: Equity
C157: Equity | D157: NGN | E157: 500
C158: Retained earnings | D158: NGN | E158: 1000
C160: Balance Check | D160: OK/Error | E160: =IF(SUM(E148:E150)-SUM(E153:E154,E157:E158)=0,0,1) -> 0
A163: ● | C163: Financing
C165: Equity and grants
C166: Equity | G166: =$E$8 -> 2020 | H166: =G166+1 -> 2021 | I166: =H166+1 -> 2022 | J166: 2023 | K166: 2024 | L166: 2025
C167: Equity investment | D167: NGN | E167: =SUM(H167:L167) -> 0
C169: Grants | G169: =$E$8 -> 2020 | H169: =G169+1 -> 2021 | I169: =H169+1 -> 2022 | J169: 2023 | K169: 2024 | L169: 2025
C170: Grants | D170: USD | E170: =SUM(H170:L170) -> 0 | G170: 100000
C172: Debt
C173: NGN Debt
C174: Lender name | D174: Name | E174: NG Bank
C175: Amount | D175: Naira | E175: 10000
C176: Interest rate | D176: % | E176: 0.05
C177: Grace period | D177: Months | E177: 0
C178: Tenor | D178: Months | E178: 36
C179: Date of first drawdown | D179: Date | E179: 2020-01-01
C180: Estimated date of first principal repayment | D180: Date | E180: =EOMONTH(E179,E177) -> 2020-01-31
C181: Estimated date of maturity | D181: Date | E181: =EOMONTH(E179,E178) -> 2023-01-31
C183: USD Debt
C184: Lender name | D184: Name | E184: ABC Bank
C185: Amount | D185: USD | E185: 1000
C186: Interest rate | D186: % | E186: 0.05
C187: Grace period | D187: Months | E187: 0
C188: Tenor | D188: Months | E188: 24
C189: Date of first drawdown | D189: Date | E189: 2020-01-01
C190: Estimated date of first principal repayment | D190: Date | E190: =EOMONTH(E189,E187) -> 2020-01-31
C191: Estimated date of maturity | D191: Date | E191: =EOMONTH(E189,E188) -> 2022-01-31
A194: ● | C194: Macro-Economics
C196: Inflation | G196: =$E$8 -> 2020 | H196: =G196+1 -> 2021 | I196: =H196+1 -> 2022 | J196: 2023 | K196: 2024 | L196: 2025 | AB196: =AA196+1 -> 1 | AC196: 2 | AD196: 3 | AE196: 4
C197: General cost inflation | D197: %/year | E197: =G209 -> 0.05 | G197: 1 | H197: =G197*(1+$E$197) -> 1.05 | I197: =H197*(1+$E$197) -> 1.1025 | J197: 1.157625 | K197: 1.21550625 | L197: 1.276281563 | AB197: =AA197*(1+$E$638) -> 0 | AC197: =AB197*(1+$E$638) -> 0 | AD197: =AC197*(1+$E$638) -> 0 | AE197: =AD197*(1+$E$638) -> 0
C199: FX rates | G199: =EOMONTH(E7,0) -> 2020-01-31 | H199: =EOMONTH(G199,12) -> 2021-01-31 | I199: =EOMONTH(H199,12) -> 2022-01-31 | J199: 2023-01-31 | K199: 2024-01-31 | L199: 2025-01-31 | AB199: =AA199+1 -> 1 | AC199: 2 | AD199: 3 | AE199: 4
C200: Depreciation (NGN/USD) | D200: %/year | E200: =G210 -> 0.05 | G200: =E201 -> 380 | H200: =G200*(1+$E$200) -> 399 | I200: =H200*(1+$E$200) -> 418.95 | J200: 439.8975 | K200: 461.892375 | L200: 484.9869938 | AB200: =AA200*(1+$E$645) -> 0 | AC200: =AB200*(1+$E$645) -> 0 | AD200: =AC200*(1+$E$645) -> 0 | AE200: =AD200*(1+$E$645) -> 0
C201: Initial FX rate | D201: NGN/USD | E201: 380
A203: ● | C203: Scenario Analysis
G206: =Start_Year -> 2020 | H206: =G206+1 -> 2021 | I206: =H206+1 -> 2022 | J206: 2023 | K206: 2024 | L206: 2025
C207: Annual sales growth (product 1) | D207: % | G207: =IFERROR(OFFSET(G$212,MATCH($E$25,$C$213:$C$215,0)+MATCH($C207,$C$212:$C$227,0)-1,0),0) -> 0.5 | H207: 0.5 | I207: 0.45 | J207: 0.25 | K207: 0.25 | L207: 0.15
C208: Annual sales growth (product 2) | D208: % | G208: 0.5 | H208: 0.5 | I208: 0.45 | J208: 0.25 | K208: 0.25 | L208: 0.15
C209: Inflation | D209: % | G209: =IFERROR(OFFSET(G$212,MATCH($E$25,$C$213:$C$215,0)+MATCH($C209,$C$212:$C$227,0)-1,0),0) -> 0.05
C210: FX depreciation | D210: % | G210: =IFERROR(OFFSET(G$212,MATCH($E$25,$C$213:$C$215,0)+MATCH($C210,$C$212:$C$227,0)-1,0),0) -> 0.05
C212: Annual sales growth (product 1)
C213: Upside | D213: % | G213: 0.5 | H213: 0.5 | I213: 0.45 | J213: 0.25 | K213: 0.25 | L213: 0.15
C214: Base | D214: % | G214: 0.4 | H214: 0.4 | I214: 0.4 | J214: 0.2 | K214: 0.2 | L214: 0.1
C215: Downside | D215: % | G215: 0.2 | H215: 0.2 | I215: 0.2 | J215: 0.1 | K215: 0.1 | L215: 0.05
C216: Annual sales growth (product 2)
C217: Upside | D217: % | G217: 0.5 | H217: 0.5 | I217: 0.45 | J217: 0.25 | K217: 0.25 | L217: 0.15
C218: Base | D218: % | G218: 0.4 | H218: 0.4 | I218: 0.4 | J218: 0.2 | K218: 0.2 | L218: 0.1
C219: Downside | D219: % | G219: 0.2 | H219: 0.2 | I219: 0.2 | J219: 0.1 | K219: 0.1 | L219: 0.05
C220: Inflation
C221: Upside | D221: % | G221: 0.05
C222: Base | D222: % | G222: 0.1
C223: Downside | D223: % | G223: 0.12
C224: FX depreciation
C225: Upside | D225: % | G225: 0.05
C226: Base | D226: % | G226: 0.08
C227: Downside | D227: % | G227: 0.1

Sheet Model
C1: =Name_Model -> Company Name SHS Model
C3: Model
I5: Annual summary (NGN)
C6: Year | I6: =Start_Year -> 2020 | J6: =I6+1 -> 2021 | K6: =J6+1 -> 2022 | L6: 2023 | M6: 2024 | N6: 2025
C7: Period start | I7: =Inputs!E7 -> 2020-01-01 | J7: =EOMONTH(I7,11)+1 -> 2021-01-01 | K7: =EOMONTH(J7,11)+1 -> 2022-01-01 | L7: 2023-01-01 | M7: 2024-01-01 | N7: 2025-01-01
C8: Period end | I8: =EOMONTH(I7,11) -> 2020-12-31 | J8: =EOMONTH(J7,11) -> 2021-12-31 | K8: 2022-12-31 | L8: 2023-12-31 | M8: 2024-12-31 | N8: =EOMONTH(N7,11) -> 2025-12-31
C9: Period
C10: Inflation index | I10: =Inputs!G197 -> 1 | J10: =Inputs!H197 -> 1.05 | K10: =Inputs!I197 -> 1.1025 | L10: =Inputs!J197 -> 1.157625 | M10: =Inputs!K197 -> 1.21550625 | N10: =Inputs!L197 -> 1.276281563
C11: USD:Naira FX rate (EOP) | H11: =Inputs!E201 -> 380 | I11: =Inputs!G200 -> 380 | J11: =Inputs!H200 -> 399 | K11: =Inputs!I200 -> 418.95 | L11: =Inputs!J200 -> 439.8975 | M11: =Inputs!K200 -> 461.892375 | N11: =Inputs!L200 -> 484.9869938
A13: ● | C13: Income Statement
C15: Gross income
C16: Sales revenue | D16: NGN | I16: =I120+I130 -> 67800000 | J16: =J120+J130 -> 101700000 | K16: 147465000 | L16: 184331250 | M16: 230414062.5 | N16: 264976171.9
C17: COGS | D17: NGN | I17: =-(Inputs!$E$34*Inputs!G49)+-(Inputs!$E$41*Inputs!G64) -> -315000 | J17: =-(Inputs!$E$34*Inputs!H49)+-(Inputs!$E$41*Inputs!H64) -> -472500 | K17: =-(Inputs!$E$34*Inputs!I49)+-(Inputs!$E$41*Inputs!I64) -> -685125 | L17: =-(Inputs!$E$34*Inputs!J49)+-(Inputs!$E$41*Inputs!J64) -> -856406.25 | M17: =-(Inputs!$E$34*Inputs!K49)+-(Inputs!$E$41*Inputs!K64) -> -1070507.812 | N17: =-(Inputs!$E$34*Inputs!L49)+-(Inputs!$E$41*Inputs!L64) -> -1231083.984
C18: Total gross income | D18: NGN | I18: =I16+I17 -> 67485000 | J18: =J16+J17 -> 101227500 | K18: 146779875 | L18: 183474843.8 | M18: 229343554.7 | N18: 263745087.9
C20: Operating costs
C21: Corporate salaries and benefits | D21: NGN | I21: =-Inputs!G87 *I10 -> -6600 | J21: =-Inputs!H87 *J10 -> -6930 | K21: =-Inputs!I87 *K10 -> -7276.5 | L21: =-Inputs!J87 *L10 -> -7640.325 | M21: =-Inputs!K87 *M10 -> -8022.34125 | N21: =-Inputs!L87 *N10 -> -8423.458313
C22: Corporate office expenses | D22: NGN | I22: =-Inputs!$E$95*I10 -> -4000 | J22: =-Inputs!$E$95*J10 -> -4200 | K22: =-Inputs!$E$95*K10 -> -4410 | L22: =-Inputs!$E$95*L10 -> -4630.5 | M22: =-Inputs!$E$95*M10 -> -4862.025 | N22: =-Inputs!$E$95*N10 -> -5105.12625
C23: Corporate administrative expenses | D23: NGN | I23: =-Inputs!$E$102*I10 -> -3000 | J23: =-Inputs!$E$102*J10 -> -3150 | K23: =-Inputs!$E$102*K10 -> -3307.5 | L23: =-Inputs!$E$102*L10 -> -3472.875 | M23: =-Inputs!$E$102*M10 -> -3646.51875 | N23: =-Inputs!$E$102*N10 -> -3828.844688
C24: Direct sales and service cost | D24: NGN | I24: =-Inputs!G120*I10 -> -3396000 | J24: =-Inputs!H120*J10 -> -5346600 | K24: =-Inputs!I120*K10 -> -8137828.125 | L24: =-Inputs!J120*L10 -> -10679741.79 | M24: =-Inputs!K120*M10 -> -14015641.72 | N24: =-Inputs!L120*N10 -> -16923249.23
C25: Total operating costs | D25: NGN | I25: =SUM(I21:I24) -> -3409600 | J25: -5360880 | K25: -8152822.125 | L25: -10695485.49 | M25: -14032172.6 | N25: -16940606.66
C27: VAT on sales | D27: NGN | F27: =Inputs!E142 -> 0.075 | I27: =-$F$27*I16 -> -5085000 | J27: -7627500 | K27: -11059875 | L27: -13824843.75 | M27: -17281054.69 | N27: -19873212.89
C29: EBITDA | D29: NGN | I29: =I18+I25+I27 -> 58990400 | J29: 88239120 | K29: 127567177.9 | L29: 158954514.5 | M29: 198030327.4 | N29: 226931268.3
C31: Depreciation | D31: NGN | I31: =-(I141) -> -100 | J31: =-(J141) -> -140 | K31: -126 | L31: -113.4 | M31: -102.06 | N31: -91.854
C33: EBIT | D33: NGN | I33: =I29+I31 -> 58990300 | J33: =J29+J31 -> 88238980 | K33: 127567051.9 | L33: 158954401.1 | M33: 198030225.3 | N33: 226931176.5
C35: Interest expense | D35: NGN | I35: =-(I174+I190) -> -9833.333333 | J35: -166.6666667 | K35: 0 | L35: 0 | M35: 0 | N35: 0
C36: FX (gains)/losses | D36: NGN | I36: =I189 -> 0 | J36: =J189 -> 9500 | K36: 0 | L36: 0 | M36: 0 | N36: 0
C38: EBT | D38: NGN | I38: =I33+SUM(I35:I36) -> 58980466.67 | J38: =J33+SUM(J35:J36) -> 88248313.33 | K38: 127567051.9 | L38: 158954401.1 | M38: 198030225.3 | N38: 226931176.5
C40: Income tax payable | D40: NGN | F40: =Inputs!E143 -> 0.32 | I40: =-$F40*MAX(I38,0) -> -18873749.33 | J40: =-$F40*MAX(J38,0) -> -28239460.27 | K40: -40821456.6 | L40: -50865408.36 | M40: -63369672.11 | N40: -72617976.48
C42: Net income | D42: NGN | I42: =I38+I40 -> 40106717.33 | J42: =J38+J40 -> 60008853.07 | K42: 86745595.28 | L42: 108088992.8 | M42: 134660553.2 | N42: 154313200
A44: ● | C44: Balance Sheet
C46: Assets
C47: Current assets
C48: Cash and equivalents | D48: NGN | I48: =I103 -> 55388984 | J48: =J103 -> 103747143.7 | K48: 175021906.7 | L48: 270650981.6 | M48: 389736597.8 | N48: 532368610.4
C49: Trade & other receivables | D49: NGN | I49: =I148 -> 500 | J49: =J148 -> 500 | K49: 500 | L49: 500 | M49: 500 | N49: 500
C50: Accounts receivable, net | D50: NGN | I50: =I149 -> 22600000 | J50: =J149 -> 33900000 | K50: 49155000 | L50: 61443750 | M50: 76804687.5 | N50: =N149 -> 88325390.62
C51: Inventory | D51: NGN | I51: =I150 -> 630000 | J51: 945000 | K51: 1370250 | L51: 1712812.5 | M51: 2141015.625 | N51: =N150 -> 2462167.969
C52: Total current assets | D52: NGN | I52: =SUM(I48:I51) -> 78619484 | J52: 138592643.7 | K52: 225547656.7 | L52: 333808044.1 | M52: 468682800.9 | N52: 623156669
C54: PP&E | I54: =I142 -> 1400 | J54: =J142 -> 1260 | K54: 1134 | L54: 1020.6 | M54: 918.54 | N54: =N142 -> 826.686
C55: Total assets | D55: NGN | I55: =I52+I54 -> 78620884 | J55: =J52+J54 -> 138593903.7 | K55: 225548790.7 | L55: 333809064.7 | M55: 468683719.5 | N55: =N52+N54 -> 623157495.7
C57: Trade and other payables | D57: NGN | I57: =I154 -> 500 | J57: =J154 -> 500 | K57: 500 | L57: 500 | M57: 500 | N57: 500
C58: Accounts payable, net | D58: NGN | I58: =I155 -> 315000 | J58: =J155 -> 472500 | K58: 685125 | L58: 856406.25 | M58: 1070507.812 | N58: =N155 -> 1231083.984
C59: Total current liabilities | D59: NGN | I59: =SUM(I57:I58) -> 315500 | J59: =SUM(J57:J58) -> 473000 | K59: 685625 | L59: 856906.25 | M59: 1071007.812 | N59: 1231583.984
C61: Non-interest bearing debt | D61: NGN | H61: =Inputs!E153 -> 500 | I61: =$H$61 -> 500 | J61: =$H$61 -> 500 | K61: 500 | L61: 500 | M61: 500 | N61: 500
C62: USD Debt | D62: NGN | I62: =I173 -> 6666.666667 | J62: =J173 -> 3333.333333 | K62: 0 | L62: 0 | M62: 0 | N62: 0
C63: NGN Debt | D63: NGN | I63: =I188 -> 190000 | J63: =J188 -> 0 | K63: 0 | L63: 0 | M63: 0 | N63: 0
C64: Total liabilities | D64: NGN | I64: =SUM(I61:I63) +I59 -> 512666.6667 | J64: 476833.3333 | K64: 686125 | L64: 857406.25 | M64: 1071507.812 | N64: 1232083.984
C67: Equity | D67: NGN | H67: =Inputs!E157 -> 500 | I67: =H67+Inputs!G167 -> 500 | J67: =I67+Inputs!H167 -> 500 | K67: =J67+Inputs!I167 -> 500 | L67: =K67+Inputs!J167 -> 500 | M67: =L67+Inputs!K167 -> 500 | N67: =M67+Inputs!L167 -> 500
C68: Grant capital | D68: NGN | I68: =I98 -> 38000000 | J68: =I68 -> 38000000 | K68: =J68 -> 38000000 | L68: 38000000 | M68: 38000000 | N68: 38000000
C69: Retained earnings | D69: NGN | H69: =Inputs!E158 -> 1000 | I69: =H69+I42 -> 40107717.33 | J69: 100116570.4 | K69: 186862165.7 | L69: 294951158.4 | M69: 429611711.7 | N69: 583924911.7
C70: Total Equity | D70: NGN | I70: =SUM(I67:I69) -> 78108217.33 | J70: =SUM(J67:J69) -> 138117070.4 | K70: 224862665.7 | L70: 332951658.4 | M70: 467612211.7 | N70: 621925411.7
C72: Total liabilities and equity | I72: =I70+I64 -> 78620884 | J72: 138593903.7 | K72: 225548790.7 | L72: 333809064.7 | M72: 468683719.5 | N72: =N70+N64 -> 623157495.7
C74: Balance Check | D74: OK/Error | H74: =IF(ROUND(SUM(I74:N74),1)<>0,1,0) -> 0 | I74: =I55-I72 -> 0 | J74: 0 | K74: 0 | L74: 0 | M74: 0 | N74: 0
A77: ● | C77: Cashflow
C79: Operating activities
C80: Net income | D80: NGN | I80: =I42 -> 40106717.33 | J80: 60008853.07 | K80: 86745595.28 | L80: 108088992.8 | M80: 134660553.2 | N80: 154313200
C81: Depreciation | D81: NGN | I81: =-I31 -> 100 | J81: 140 | K81: 126 | L81: 113.4 | M81: 102.06 | N81: 91.854
C82: FX (gains)/losses | D82: NGN | I82: =I189 -> 0 | J82: =J189 -> 9500 | K82: 0 | L82: 0 | M82: 0 | N82: 0
C83: (Increase)/decrease in working capital | D83: NGN | I83: =I160 -> -22915000 | J83: -11457500 | K83: -15467625 | L83: -12460031.25 | M83: -15575039.06 | N83: -11681279.3
C84: Cash flow from operating activities | D84: NGN | I84: =SUM(I80:I83) -> 17191817.33 | J84: =SUM(J80:J83) -> 48560993.07 | K84: 71278096.28 | L84: 95629074.91 | M84: 119085616.2 | N84: 142632012.6
C86: Investing activities
C87: Capital expenditure | D87: NGN | I87: =-(I140) -> -500 | J87: =-(J140) -> 0 | K87: 0 | L87: 0 | M87: 0 | N87: =-(N140) -> 0
C88: Cash flow from investing activities | D88: NGN | I88: =SUM(I87) -> -500 | J88: =SUM(J87) -> 0 | K88: 0 | L88: 0 | M88: 0 | N88: =SUM(N87) -> 0
C90: Cash available for financing activities | D90: NGN | I90: =I84+I88 -> 17191317.33 | J90: =J84+J88 -> 48560993.07 | K90: 71278096.28 | L90: 95629074.91 | M90: 119085616.2 | N90: =N84+N88 -> 142632012.6
C92: Financing activities
C93: (Repayment) of NGN debt | D93: NGN | I93: =-I172 -> -3333.333333 | J93: =-J172 -> -3333.333333 | K93: -3333.333333 | L93: 0 | M93: 0 | N93: 0
C94: (Repayment) of USD debt | D94: NGN | I94: =-I187 -> -190000 | J94: =-J187 -> -199500 | K94: 0 | L94: 0 | M94: 0 | N94: 0
C95: Issuance of NGN debt | D95: NGN | I95: =I170 -> 10000 | J95: =J170 -> 0 | K95: 0 | L95: 0 | M95: 0 | N95: 0
C96: Issuance of USD debt | D96: NGN | I96: =I186 -> 380000 | J96: =J186 -> 0 | K96: 0 | L96: 0 | M96: 0 | N96: 0
C97: Increase / (decrease) in equity | D97: NGN | I97: =I67-H67 -> 0 | J97: 0 | K97: 0 | L97: 0 | M97: 0 | N97: 0
C98: Receipt of grants | D98: NGN | I98: =Inputs!G170*I11 -> 38000000 | J98: =Inputs!H170*J11 -> 0 | K98: =Inputs!I170*K11 -> 0 | L98: =Inputs!J170*L11 -> 0 | M98: =Inputs!K170*M11 -> 0 | N98: =Inputs!L170*N11 -> 0
C99: Cash flow from financing activities | D99: NGN | I99: =SUM(I93:I98) -> 38196666.67 | J99: =SUM(J93:J98) -> -202833.3333 | K99: -3333.333333 | L99: 0 | M99: 0 | N99: 0
C101: Net change in cash | D101: NGN | I101: =I90+I99 -> 55387984 | J101: 48358159.73 | K101: 71274762.94 | L101: 95629074.91 | M101: 119085616.2 | N101: 142632012.6
C102: Beginning cash balance | D102: NGN | I102: =Inputs!E148 -> 1000 | J102: =I103 -> 55388984 | K102: =J103 -> 103747143.7 | L102: 175021906.7 | M102: 270650981.6 | N102: 389736597.8
C103: Ending cash balance | D103: NGN | I103: =I101+I102 -> 55388984 | J103: =J101+J102 -> 103747143.7 | K103: =K101+K102 -> 175021906.7 | L103: 270650981.6 | M103: 389736597.8 | N103: =N101+N102 -> 532368610.4 | P103: =IF(MIN(Q103:Q103)<0,1,0) -> 0
C105: Distributions to equity
C106: Distributions to equity | D106: NGN | I106: =I90+I93+I94+I97 -> 16997984 | J106: =J90+J93+J94+J97 -> 48358159.73 | K106: 71274762.94 | L106: 95629074.91 | M106: 119085616.2 | N106: 142632012.6
A108: ● | C108: Sales
C110: Period | H110: 0 | I110: =H110+1 -> 1 | J110: =I110+1 -> 2 | K110: 3 | L110: 4 | M110: 5 | N110: 6
C112: Sales calculations
C113: Product 1 sales
C114: Sales percentage | D114: % | I114: =INDEX(Inputs!$G$48:$P$48,,MATCH(I6,Inputs!$G$47:$P$47,0)) -> 0 | J114: =INDEX(Inputs!$G$48:$P$48,,MATCH(J6,Inputs!$G$47:$P$47,0)) -> 0.5 | K114: =INDEX(Inputs!$G$48:$P$48,,MATCH(K6,Inputs!$G$47:$P$47,0)) -> 0.45 | L114: =INDEX(Inputs!$G$48:$P$48,,MATCH(L6,Inputs!$G$47:$P$47,0)) -> 0.25 | M114: =INDEX(Inputs!$G$48:$P$48,,MATCH(M6,Inputs!$G$47:$P$47,0)) -> 0.25 | N114: =INDEX(Inputs!$G$48:$P$48,,MATCH(N6,Inputs!$G$47:$P$47,0)) -> 0.15
C115: Annual sales | D115: # | I115: =Inputs!E47 -> 500 | J115: =I115*(1+J114) -> 750 | K115: =J115*(1+K114) -> 1087.5 | L115: 1359.375 | M115: 1699.21875 | N115: 1954.101562
C117: Down payment revenue | D117: NGN | F117: =Inputs!E54 -> 2000 | I117: =I115*$F$117 -> 1000000 | J117: =J115*$F$117 -> 1500000 | K117: 2175000 | L117: 2718750 | M117: 3398437.5 | N117: =N115*$F$117 -> 3908203.125
C118: Monthly payment revenue | D118: NGN | F118: =Inputs!E55*Inputs!E56 -> 48000 | I118: =$F$118*I115 -> 24000000 | J118: =$F$118*J115 -> 36000000 | K118: 52200000 | L118: 65250000 | M118: 81562500 | N118: =$F$118*N115 -> 93796875
C119: Default rates | D119: % | F119: =Inputs!E58 -> 0.1 | I119: =$F$119*(I118) -> 2400000 | J119: =$F$119*(J118) -> 3600000 | K119: 5220000 | L119: 6525000 | M119: 8156250 | N119: 9379687.5
C120: Total product 1 revenue | D120: NGN | I120: =I117+(I118-I119) -> 22600000 | J120: =J117+(J118-J119) -> 33900000 | K120: 49155000 | L120: 61443750 | M120: 76804687.5 | N120: =N117+(N118-N119) -> 88325390.62
C122: Sales calculations
C123: Product 2 sales
C124: Sales percentage | D124: % | I124: =INDEX(Inputs!$G$63:$P$63,,MATCH(I6,Inputs!$G$62:$P$62,0)) -> 0 | J124: =INDEX(Inputs!$G$63:$P$63,,MATCH(J6,Inputs!$G$62:$P$62,0)) -> 0.5 | K124: =INDEX(Inputs!$G$63:$P$63,,MATCH(K6,Inputs!$G$62:$P$62,0)) -> 0.45 | L124: =INDEX(Inputs!$G$63:$P$63,,MATCH(L6,Inputs!$G$62:$P$62,0)) -> 0.25 | M124: =INDEX(Inputs!$G$63:$P$63,,MATCH(M6,Inputs!$G$62:$P$62,0)) -> 0.25 | N124: =INDEX(Inputs!$G$63:$P$63,,MATCH(N6,Inputs!$G$62:$P$62,0)) -> 0.15
C125: Annual sales | D125: # | I125: =Inputs!E62 -> 1000 | J125: =I125*(1+J124) -> 1500 | K125: =J125*(1+K124) -> 2175 | L125: =K125*(1+L124) -> 2718.75 | M125: =L125*(1+M124) -> 3398.4375 | N125: =M125*(1+N124) -> 3908.203125
C127: Down payment revenue | D127: NGN | F127: =Inputs!E69 -> 10000 | I127: =I125*$F$117 -> 2000000 | J127: =J125*$F$117 -> 3000000 | K127: 4350000 | L127: 5437500 | M127: 6796875 | N127: 7816406.25
C128: Monthly payment revenue | D128: NGN | F128: =Inputs!E70*Inputs!E71 -> 96000 | I128: =$F$118*I125 -> 48000000 | J128: =$F$118*J125 -> 72000000 | K128: 104400000 | L128: 130500000 | M128: 163125000 | N128: 187593750
C129: Default rates | D129: % | F129: =Inputs!E73 -> 0.1 | I129: =$F$119*(I128) -> 4800000 | J129: =$F$119*(J128) -> 7200000 | K129: 10440000 | L129: 13050000 | M129: 16312500 | N129: 18759375
C130: Total product 2 revenue | D130: NGN | I130: =I127+(I128-I129) -> 45200000 | J130: =J127+(J128-J129) -> 67800000 | K130: 98310000 | L130: 122887500 | M130: 153609375 | N130: 176650781.2
A134: ● | C134: CAPEX and Depreciation
C136: Period counter
C138: PP&E
C139: Beginning | D139: NGN | I139: =Inputs!E135 -> 1000 | J139: =I142 -> 1400 | K139: =J142 -> 1260 | L139: =K142 -> 1134 | M139: =L142 -> 1020.6 | N139: 918.54
C140: Capex | D140: NGN | I140: =Inputs!G139 -> 500 | J140: =Inputs!H139 -> 0 | K140: =Inputs!I139 -> 0 | L140: =Inputs!J139 -> 0 | M140: =Inputs!K139 -> 0 | N140: =Inputs!L139 -> 0
C141: Depreciation | D141: NGN | F141: =Inputs!G136 -> 0.1 | I141: =$F$141*I139 -> 100 | J141: =$F$141*J139 -> 140 | K141: 126 | L141: 113.4 | M141: 102.06 | N141: 91.854
C142: Ending | D142: NGN | I142: =I139+I140-I141 -> 1400 | J142: =J139+J140-J141 -> 1260 | K142: 1134 | L142: 1020.6 | M142: 918.54 | N142: =N139+N140-N141 -> 826.686
A144: ● | C144: Working Capital Schedule
C146: Net working capital
C147: Assets
C148: Trade & other receivables | D148: NGN | H148: =Inputs!E150 -> 500 | I148: =H148 -> 500 | J148: =I148 -> 500 | K148: =J148 -> 500 | L148: 500 | M148: 500 | N148: 500
C149: Account receivable, net | D149: NGN | I149: =(I16*Inputs!$E$127)/Inputs!$E$125 -> 22600000 | J149: =(J16*Inputs!$E$127)/Inputs!$E$125 -> 33900000 | K149: =(K16*Inputs!$E$127)/Inputs!$E$125 -> 49155000 | L149: =(L16*Inputs!$E$127)/Inputs!$E$125 -> 61443750 | M149: =(M16*Inputs!$E$127)/Inputs!$E$125 -> 76804687.5 | N149: =(N16*Inputs!$E$127)/Inputs!$E$125 -> 88325390.62
C150: Inventory | D150: NGN | I150: =(-I17*Inputs!$E$129)/Inputs!$E$125 -> 630000 | J150: =(-J17*Inputs!$E$129)/Inputs!$E$125 -> 945000 | K150: =(-K17*Inputs!$E$129)/Inputs!$E$125 -> 1370250 | L150: =(-L17*Inputs!$E$129)/Inputs!$E$125 -> 1712812.5 | M150: =(-M17*Inputs!$E$129)/Inputs!$E$125 -> 2141015.625 | N150: =(-N17*Inputs!$E$129)/Inputs!$E$125 -> 2462167.969
C151: Total current assets | D151: NGN | I151: =SUM(I148:I150) -> 23230500 | J151: =SUM(J148:J150) -> 34845500 | K151: 50525750 | L151: 63157062.5 | M151: 78946203.12 | N151: 90788058.59
C153: Liabilities
C154: Trade & other payables | D154: NGN | H154: =Inputs!E154 -> 500 | I154: =H154 -> 500 | J154: =I154 -> 500 | K154: =J154 -> 500 | L154: 500 | M154: 500 | N154: 500
C155: Accounts payable, net | D155: NGN | I155: =(-I17*Inputs!$E$128)/Inputs!$E$125 -> 315000 | J155: =(-J17*Inputs!$E$128)/Inputs!$E$125 -> 472500 | K155: =(-K17*Inputs!$E$128)/Inputs!$E$125 -> 685125 | L155: =(-L17*Inputs!$E$128)/Inputs!$E$125 -> 856406.25 | M155: =(-M17*Inputs!$E$128)/Inputs!$E$125 -> 1070507.812 | N155: =(-N17*Inputs!$E$128)/Inputs!$E$125 -> 1231083.984
C156: Total current liabilities | D156: NGN | I156: =SUM(I154:I155) -> 315500 | J156: =SUM(J154:J155) -> 473000 | K156: 685625 | L156: 856906.25 | M156: 1071007.812 | N156: 1231583.984
C158: Net working capital/(deficit) | D158: NGN | I158: =I151-I156 -> 22915000 | J158: 34372500 | K158: 49840125 | L158: 62300156.25 | M158: 77875195.31 | N158: 89556474.61
C160: (Increase)/decrease in working capital | D160: NGN | I160: =H158-I158 -> -22915000 | J160: -11457500 | K160: =J158-K158 -> -15467625 | L160: =K158-L158 -> -12460031.25 | M160: =L158-M158 -> -15575039.06 | N160: -11681279.3
A162: ● | C162: Debt funding
C164: USD:Naira rate (EOP)
C167: =CONCATENATE(Inputs!E174," ","Debt") -> NG Bank Debt
C168: Period count | I168: =IF(AND(MONTH(I$7)=1,I$6=YEAR(Inputs!$E$179)),1,IF(H168>0,H168+1,0)) -> 1 | J168: =IF(AND(MONTH(J$7)=1,J$6=YEAR(Inputs!$E$179)),1,IF(I168>0,I168+1,0)) -> 2 | K168: =IF(AND(MONTH(K$7)=1,K$6=YEAR(Inputs!$E$179)),1,IF(J168>0,J168+1,0)) -> 3 | L168: =IF(AND(MONTH(L$7)=1,L$6=YEAR(Inputs!$E$179)),1,IF(K168>0,K168+1,0)) -> 4 | M168: =IF(AND(MONTH(M$7)=1,M$6=YEAR(Inputs!$E$179)),1,IF(L168>0,L168+1,0)) -> 5 | N168: =IF(AND(MONTH(N$7)=1,N$6=YEAR(Inputs!$E$179)),1,IF(M168>0,M168+1,0)) -> 6
C169: Opening balance | D169: NGN | F169: =Inputs!E175 -> 10000 | I169: =H173 -> 0 | J169: =I173 -> 6666.666667 | K169: 3333.333333 | L169: 0 | M169: 0 | N169: 0
C170: Additions | D170: NGN | E170: Grace | F170: Tenor | I170: =IF(AND(Inputs!$E$179<Model!J$7,Inputs!$E$179>=Model!I$7),Model!$F$169,0) -> 10000 | J170: =IF(AND(Inputs!$E$179<Model!K$7,Inputs!$E$179>=Model!J$7),Model!$F$169,0) -> 0 | K170: =IF(AND(Inputs!$E$179<Model!L$7,Inputs!$E$179>=Model!K$7),Model!$F$169,0) -> 0 | L170: =IF(AND(Inputs!$E$179<Model!M$7,Inputs!$E$179>=Model!L$7),Model!$F$169,0) -> 0 | M170: =IF(AND(Inputs!$E$179<Model!N$7,Inputs!$E$179>=Model!M$7),Model!$F$169,0) -> 0 | N170: =IF(AND(Inputs!$E$179<Model!O$7,Inputs!$E$179>=Model!N$7),Model!$F$169,0) -> 0
C171: Repayment flag | E171: =Inputs!E177 /12 -> 0 | F171: =Inputs!E178/12 -> 3 | I171: =IF(I168<=$E171,0,IF(I168>$F171,0,1)) -> 1 | J171: 1 | K171: 1 | L171: 0 | M171: 0 | N171: =IF(N168<=$E171,0,IF(N168>$F171,0,1)) -> 0
C172: Prinicipal payments | D172: NGN | F172: =F171-E171 -> 3 | I172: =IF(I171=1,$F169/$F172,0) -> 3333.333333 | J172: 3333.333333 | K172: 3333.333333 | L172: 0 | M172: 0 | N172: =IF(N171=1,$F169/$F172,0) -> 0
C173: Ending balance | D173: NGN | I173: =I169+I170-I172 -> 6666.666667 | J173: 3333.333333 | K173: 0 | L173: 0 | M173: 0 | N173: =N169+N170-N172 -> 0
C174: Interest paid | D174: NGN | F174: =Inputs!E176 -> 0.05 | I174: =$F$174*I173 -> 333.3333333 | J174: 166.6666667 | K174: 0 | L174: 0 | M174: 0 | N174: 0
C176: =CONCATENATE(Inputs!E184," ","Debt") -> ABC Bank Debt
C177: Period count | I177: =IF(AND(MONTH(I$7)=1,I$6=YEAR(Inputs!$E$189)),1,IF(H177>0,H177+1,0)) -> 1 | J177: =IF(AND(MONTH(J$7)=1,J$6=YEAR(Inputs!$E$189)),1,IF(I177>0,I177+1,0)) -> 2 | K177: =IF(AND(MONTH(K$7)=1,K$6=YEAR(Inputs!$E$189)),1,IF(J177>0,J177+1,0)) -> 3 | L177: =IF(AND(MONTH(L$7)=1,L$6=YEAR(Inputs!$E$189)),1,IF(K177>0,K177+1,0)) -> 4 | M177: =IF(AND(MONTH(M$7)=1,M$6=YEAR(Inputs!$E$189)),1,IF(L177>0,L177+1,0)) -> 5 | N177: =IF(AND(MONTH(N$7)=1,N$6=YEAR(Inputs!$E$189)),1,IF(M177>0,M177+1,0)) -> 6
C178: Opening balance | D178: USD | F178: =Inputs!E185 -> 1000 | I178: =H182 -> 0 | J178: =I182 -> 500 | K178: =J182 -> 0 | L178: =K182 -> 0 | M178: =L182 -> 0 | N178: 0
C179: Additions | D179: USD | E179: Grace | F179: Tenor | I179: =IF(AND(Inputs!$E$189<Model!J$7,Inputs!$E$189>=Model!I$7),Model!$F$178,0) -> 1000 | J179: =IF(AND(Inputs!$E$189<Model!K$7,Inputs!$E$189>=Model!J$7),Model!$F$178,0) -> 0 | K179: =IF(AND(Inputs!$E$189<Model!L$7,Inputs!$E$189>=Model!K$7),Model!$F$178,0) -> 0 | L179: =IF(AND(Inputs!$E$189<Model!M$7,Inputs!$E$189>=Model!L$7),Model!$F$178,0) -> 0 | M179: =IF(AND(Inputs!$E$189<Model!N$7,Inputs!$E$189>=Model!M$7),Model!$F$178,0) -> 0 | N179: =IF(AND(Inputs!$E$189<Model!O$7,Inputs!$E$189>=Model!N$7),Model!$F$178,0) -> 0
C180: Repayment flag | E180: =Inputs!E187 /12 -> 0 | F180: =Inputs!E188/12 -> 2 | I180: =IF(I177<=$E180,0,IF(I177>$F180,0,1)) -> 1 | J180: 1 | K180: 0 | L180: 0 | M180: 0 | N180: =IF(N177<=$E180,0,IF(N177>$F180,0,1)) -> 0
C181: Prinicipal payments | D181: USD | F181: =F180-E180 -> 2 | I181: =IF(I180=1,$F178/$F181,0) -> 500 | J181: 500 | K181: 0 | L181: 0 | M181: 0 | N181: =IF(N180=1,$F178/$F181,0) -> 0
C182: Ending balance | D182: USD | I182: =I178+I179-I181 -> 500 | J182: 0 | K182: 0 | L182: 0 | M182: 0 | N182: =N178+N179-N181 -> 0
C183: Interest paid | D183: USD | F183: =Inputs!E186 -> 0.05 | I183: =$F$174*I182 -> 25 | J183: 0 | K183: 0 | L183: 0 | M183: 0 | N183: 0
C185: Opening balance USD debt | D185: NGN | I185: =H188 -> 0 | J185: =I188 -> 190000 | K185: 0 | L185: 0 | M185: 0 | N185: 0
C186: Additions USD debt | D186: NGN | I186: =I179*I11 -> 380000 | J186: =J179*J11 -> 0 | K186: 0 | L186: 0 | M186: 0 | N186: 0
C187: Prinicipal payments USD debt | D187: NGN | I187: =I181*I11 -> 190000 | J187: 199500 | K187: 0 | L187: 0 | M187: 0 | N187: 0
C188: Ending balance USD debt | D188: NGN | I188: =I182*I11 -> 190000 | J188: 0 | K188: 0 | L188: 0 | M188: 0 | N188: 0
C189: FX (profit)/loss USD debt | D189: NGN | I189: =I188-SUM(I185:I186,-I187) -> 0 | J189: =J188-SUM(J185:J186,-J187) -> 9500 | K189: 0 | L189: 0 | M189: 0 | N189: 0
C190: Interest paid | D190: NGN | I190: =I183*I11 -> 9500 | J190: 0 | K190: 0 | L190: 0 | M190: 0 | N190: 0
A192: ● | C192: Outputs
C194: Returns
C195: IRR | D195: % | F195: =IRR(I195:N195) ->  | I195: =I106 -> 16997984 | J195: =J106 -> 48358159.73 | K195: 71274762.94 | L195: 95629074.91 | M195: 119085616.2 | N195: 142632012.6
A196: x

Sheet Graph Calcs
A1: Graph Calculations
A2: =Name_Model -> Company Name SHS Model
I4: Annual summary (USD) | P4: =P6 -> 0
C5: Year | I5: =Start_Year -> 2020 | J5: =I5+1 -> 2021 | K5: =J5+1 -> 2022 | L5: 2023 | M5: 2024 | N5: 2025
A7: x | C7: Graphs
C9: Income Statement
C10: Revenue | D10: NGN | I10: =Model!I$16 -> 67800000 | J10: =Model!J$16 -> 101700000 | K10: =Model!K$16 -> 147465000 | L10: =Model!L$16 -> 184331250 | M10: =Model!M$16 -> 230414062.5 | N10: =Model!N$16 -> 264976171.9
C11: Net income | D11: NGN | I11: =Model!I$42 -> 40106717.33 | J11: =Model!J$42 -> 60008853.07 | K11: =Model!K$42 -> 86745595.28 | L11: =Model!L$42 -> 108088992.8 | M11: =Model!M$42 -> 134660553.2 | N11: =Model!N$42 -> 154313200
C12: Tax | D12: NGN | I12: =-Model!I40 -> 18873749.33 | J12: =-Model!J40 -> 28239460.27 | K12: =-Model!K40 -> 40821456.6 | L12: =-Model!L40 -> 50865408.36 | M12: =-Model!M40 -> 63369672.11 | N12: =-Model!N40 -> 72617976.48
C13: Interest & FX depreciation | D13: NGN | I13: =-(Model!I35+Model!I36) -> 9833.333333 | J13: =-(Model!J35+Model!J36) -> -9333.333333 | K13: =-(Model!K35+Model!K36) -> 0 | L13: =-(Model!L35+Model!L36) -> 0 | M13: =-(Model!M35+Model!M36) -> 0 | N13: =-(Model!N35+Model!N36) -> 0
C14: Depreciation | D14: NGN | I14: =-Model!I31 -> 100 | J14: =-Model!J31 -> 140 | K14: =-Model!K31 -> 126 | L14: =-Model!L31 -> 113.4 | M14: =-Model!M31 -> 102.06 | N14: =-Model!N31 -> 91.854
C15: OPEX & VAT | D15: NGN | I15: =-(Model!I25+Model!I27) -> 8494600 | J15: =-(Model!J25+Model!J27) -> 12988380 | K15: =-(Model!K25+Model!K27) -> 19212697.12 | L15: =-(Model!L25+Model!L27) -> 24520329.24 | M15: =-(Model!M25+Model!M27) -> 31313227.29 | N15: =-(Model!N25+Model!N27) -> 36813819.55
C16: COGS | D16: NGN | I16: =-Model!I17 -> 315000 | J16: =-Model!J17 -> 472500 | K16: =-Model!K17 -> 685125 | L16: =-Model!L17 -> 856406.25 | M16: =-Model!M17 -> 1070507.812 | N16: =-Model!N17 -> 1231083.984
C17: Net margin | D17: % | I17: ='Graph Calcs'!I11/'Graph Calcs'!I10 -> 0.5915445034 | J17: ='Graph Calcs'!J11/'Graph Calcs'!J10 -> 0.5900575523 | K17: ='Graph Calcs'!K11/'Graph Calcs'!K10 -> 0.5882453143 | L17: ='Graph Calcs'!L11/'Graph Calcs'!L10 -> 0.5863845265 | M17: ='Graph Calcs'!M11/'Graph Calcs'!M10 -> 0.584428536 | N17: ='Graph Calcs'!N11/'Graph Calcs'!N10 -> 0.5823663272
C19: Cashflow Statement
C20: Operating activities | D20: NGN | I20: =Model!I84 -> 17191817.33 | J20: =Model!J84 -> 48560993.07 | K20: =Model!K84 -> 71278096.28 | L20: =Model!L84 -> 95629074.91 | M20: =Model!M84 -> 119085616.2 | N20: =Model!N84 -> 142632012.6
C21: CAPEX | D21: NGN | I21: =Model!I87 -> -500 | J21: =Model!J87 -> 0 | K21: =Model!K87 -> 0 | L21: =Model!L87 -> 0 | M21: =Model!M87 -> 0 | N21: =Model!N87 -> 0
C22: Debt repayment | D22: NGN | I22: =Model!I172+Model!I187 -> 193333.3333 | J22: =Model!J172+Model!J187 -> 202833.3333 | K22: =Model!K172+Model!K187 -> 3333.333333 | L22: =Model!L172+Model!L187 -> 0 | M22: =Model!M172+Model!M187 -> 0 | N22: =Model!N172+Model!N187 -> 0
C23: Debt issuance | D23: NGN | I23: =Model!I170+Model!I186 -> 390000 | J23: =Model!J170+Model!J186 -> 0 | K23: =Model!K170+Model!K186 -> 0 | L23: =Model!L170+Model!L186 -> 0 | M23: =Model!M170+Model!M186 -> 0 | N23: =Model!N170+Model!N186 -> 0
C24: Equity or grants | D24: NGN | I24: =Model!I67+Model!I68 -> 38000500 | J24: =Model!J67+Model!J68 -> 38000500 | K24: =Model!K67+Model!K68 -> 38000500 | L24: =Model!L67+Model!L68 -> 38000500 | M24: =Model!M67+Model!M68 -> 38000500 | N24: =Model!N67+Model!N68 -> 38000500
C25: End cash | D25: NGN | I25: =Model!I103 -> 55388984 | J25: =Model!J103 -> 103747143.7 | K25: =Model!K103 -> 175021906.7 | L25: =Model!L103 -> 270650981.6 | M25: =Model!M103 -> 389736597.8 | N25: =Model!N103 -> 532368610.4
C27: Sales & Working Capital need
C28: Sales | D28: # | I28: =Model!I16 -> 67800000 | J28: =Model!J16 -> 101700000 | K28: =Model!K16 -> 147465000 | L28: =Model!L16 -> 184331250 | M28: =Model!M16 -> 230414062.5 | N28: =Model!N16 -> 264976171.9
C29: Working capital | D29: NGN | I29: =Model!I158 -> 22915000 | J29: =Model!J158 -> 34372500 | K29: =Model!K158 -> 49840125 | L29: =Model!L158 -> 62300156.25 | M29: =Model!M158 -> 77875195.31 | N29: =Model!N158 -> 89556474.61
C31: OPEX Breakdown
C32: Total OPEX | D32: NGN | I32: =-Model!I25 -> 3409600 | J32: =-Model!J25 -> 5360880 | K32: =-Model!K25 -> 8152822.125 | L32: =-Model!L25 -> 10695485.49 | M32: =-Model!M25 -> 14032172.6 | N32: =-Model!N25 -> 16940606.66
C34: Equity payback graph
C35: Equity invested | D35: NGN | I35: =Model!I69 -> 40107717.33 | J35: =Model!J69 -> 100116570.4 | K35: =Model!K69 -> 186862165.7 | L35: =Model!L69 -> 294951158.4 | M35: =Model!M69 -> 429611711.7 | N35: =Model!N69 -> 583924911.7
C36: Distributions to equity | D36: NGN | I36: =Model!I106 -> 16997984 | J36: =Model!J106 -> 48358159.73 | K36: =Model!K106 -> 71274762.94 | L36: =Model!L106 -> 95629074.91 | M36: =Model!M106 -> 119085616.2 | N36: =Model!N106 -> 142632012.6

Sheet Legend
C2: Style legend
C6: Style | E6: Design | G6: Comment
C8: Header1 | E8: Header1
C10: Header2 | E10: Header2
C12: Header3 | E12: Header3
C14: Assumption | E14: 100 | G14: A user driven input
C16: Technical_Input | E16: 100 | G16: A model input that should not be changed to protect the integrity of the model
C18: Empty_Cell | G18: A cell that is left intentionally blank to avoid the risk of error
C20: InSheet | E20: 100 | G20: A link within the worksheet or an interim calculation step
C22: OffSheet | E22: 100 | G22: A link to another worksheet to minimise the number of inter-worksheet references
C24: Line_SubTotal | E24: 100 | G24: The sum of elements in the table immediately above
C26: Line_Total | E26: 100 | G26: The sum of elements above, including sub-totals
C28: Unit / Info | E28: NGN | G28: Explanatory text showing helpful information and the units/dimensions of the calculations
C30: Line_Summary | E30: 100 | G30: The SUM() of everything to the right
C32: Table_Header | E32: Qtr | G32: Header of a table or of an off-sheet reference
C34: Flag | E34: 1 | G34: Binary flag - set up as a 'Style' and updated with conditional formatting
C36: Line_ClosingBal | E36: 100 | G36: The closing balance of a control account

Sheet Names
C2: Names and Lists
C5: Name | E5: Value
C7: Entity Names
C8: Model Name | E8: Company Name SHS Model
C9: Company Name | E9: Company Name
C11: Lists
C12: Price increase dropdown | E12: Inflation
E13: Inflation+ x%
C15: Year | E15: =Start_Year -> 2020
E16: =E15+1 -> 2021
E17: =E16+1 -> 2022
E18: 2023
E19: 2024
E20: 2025
C22: Scenario | E22: Upside
E23: Base
E24: Downside
